[Event "7th Washington Open 2018"]
[Site "Rockville"]
[Date "2018.08.13"]
[Round "6.2"]
[White "Macieja, Bartlomiej"]
[Black "Checa, Nicolas D"]
[Result "0-1"]
[ECO "A11"]
[WhiteElo "2528"]
[BlackElo "2478"]
[Annotator "RC"]
[PlyCount "114"]
[EventDate "2018.08.11"]
[EventType "swiss"]
[EventCountry "USA"]
[SourceTitle "playchess.com"]
[Source "ChessBase"]
[SourceQuality "1"]
[TimeControl "40/5400+30:1200+30"]

1. c4 {[%emt 0:02:06]} c6 {[%emt 0:00:57]} 2. Nf3 {[%emt 0:00:26]} d5 {[%emt 0:00:14]} 3. e3 {[%emt 0:00:10]} Nf6 {[%emt 0:01:25]} 4. Nc3 {[%emt 0:00:02]} a6 {[%emt 0:01:20]} 5. h3 {[%emt 0:00:07]} g6 {[%emt 0:06:35]} 6. b3 {[%emt 0:14:09]} Bg7 {[%emt 0:01:15]} 7. Bb2 {[%emt 0:00:04]} O-O {[%emt 0:03:12]} 8. Rc1 {[%emt 0:01:08]} Ne4 {[%emt 0:07:10]} 9. Be2 {[%emt 0:20:44]} e5 {[%emt 0:09:57]} 10. d3 {[%emt 0:35:20]} Nxc3 {[%emt 0:01:14]} 11. Bxc3 {[%emt 0:00:01]} Re8 {[%emt 0:03:39]} 12. O-O {[%emt 0:00:57]} d4 {[%emt 0:02:22]} 13. exd4 {[%emt 0:00:06]} exd4 {[%emt 0:00:07]} 14. Bd2 {[%emt 0:00:02]} Nd7 {[%emt 0:06:33]} 15. Re1 {[%emt 0:07:44]} a5 {[%emt 0:06:08]} 16. Bg5 {[%emt 0:00:00]} Qc7 {[%emt 0:03:50]} 17. Qd2 {[%emt 0:09:33]} Nc5 {[%emt 0:02:50]} 18. Bh6 {[%emt 0:03:30]} Ne6 {[%emt 0:02:23]} 19. Bxg7 {[%emt 0:01:01]} Kxg7 {[%emt 0:00:05]} 20. c5 {[%emt 0:00:56]} Rd8 {[%emt 0:03:59]} 21. Ng5 {[%emt 0:00:47]} Nxg5 {[%emt 0:03:35]} 22. Qxg5 {[%emt 0:00:02]} Be6 {[%emt 0:00:52]} 23. Bg4 {[%emt 0:00:18]} Rd5 {[%emt 0:03:56]} 24. Qh4 {[%emt 0:00:09]} Bxg4 {[%emt 0:05:42]} 25. Qxg4 {[%emt 0:00:01]} Rad8 {[%emt 0:00:25]} 26. Rc4 {[%emt 0:00:05]} Re5 {[%emt 0:02:01]} 27. Kf1 {[%emt 0:03:27]} Rxe1+ {[%emt 0:07:14]} 28. Kxe1 {[%emt 0:00:01]} Qh2 {[%emt 0:00:10]} 29. Kd2 {[%emt 0:00:10]} h5 {[%emt 0:01:12]} 30. Qe4 {[%emt 0:01:18]} Qg1 {[%emt 0:02:42]} 31. Qf3 {[%emt 0:00:07]} Rd5 {[%emt 0:01:13]} 32. g4 {[%emt 0:00:37]} hxg4 {[%emt 0:00:52]} 33. hxg4 {[%emt 0:00:02]} Rg5 {[%emt 0:05:45]} 34. Rxd4 {[%emt 0:00:49]} Qa1 {[%emt 0:00:44]} 35. Rd7 {[%emt 0:00:59]} Qxa2+ {[%emt 0:00:58]} 36. Ke1 {[%emt 0:00:29]} Qxb3 {[%emt 0:00:20]} 37. Kf1 {[%emt 0:00:32]} Rxc5 {[%emt 0:01:00]} 38. Qf4 {[%emt 0:00:09]} Qe6 {[%emt 0:02:04]} 39. Qd4+ {[%emt 0:00:21]} Qe5 {[%emt 0:00:25]} 40. Qxe5+ {[%emt 0:00:08]} Rxe5 {[%emt 0:00:05]} 41. Rxb7 {[%emt 0:20:03]} Kf6 {[%emt 0:04:42]} 42. Rc7 {[%emt 0:00:00]} Rc5 {[%emt 0:01:27]} 43. Ke2 {[%emt 0:00:00]} Ke6 {[%emt 0:00:06]} 44. Kd2 {[%emt 0:00:00]} f5 {[%emt 0:10:08]} 45. d4 {[%emt 0:02:28]} Rd5 {[%emt 0:02:50]} 46. gxf5+ {[%emt 0:01:13]} Kxf5 {[%emt 0:00:23]} 47. Ke3 {[%emt 0:00:19]} Rb5 {[%emt 0:03:37]} 48. Rxc6 {[%emt 0:00:12]} a4 {[%emt 0:01:17]} 49. Kd3 {[%emt 0:01:01]} Ra5 {[%emt 0:00:50]} 50. Kc2 {[%emt 0:00:17]} g5 {[%emt 0:01:03]} 51. Kb2 {[%emt 0:00:13]} Ke4 {[%emt 0:00:34]} 52. Rc4 {[%emt 0:00:55]} a3+ {[%emt 0:01:18]} 53. Ka2 {[%emt 0:00:10]} Rd5 {[%emt 0:00:54]} 54. Rc8 {[%emt 0:01:00]} Rxd4 {[%emt 0:00:20]} 55. Kxa3 {[%emt 0:00:32]} Kf3 {[%emt 0:00:18]} 56. Rc2 {[%emt 0:00:20]} g4 {[%emt 0:00:11]} 57. Kb3 {[%emt 0:00:12]} Re4 {[%emt 0:00:06]} 0-1

[Event "7th Washington Open 2018"]
[Site "Rockville"]
[Date "2018.08.13"]
[Round "6.4"]
[White "Dragun, Kamil"]
[Black "Friedel, Joshua E"]
[Result "1-0"]
[ECO "D37"]
[WhiteElo "2594"]
[BlackElo "2547"]
[Annotator "ChessBase"]
[PlyCount "89"]
[EventDate "2018.08.11"]
[EventType "swiss"]
[EventCountry "USA"]
[SourceTitle "playchess.com"]
[Source "ChessBase"]
[SourceQuality "1"]
[TimeControl "40/5400+30:1200+30"]

1. d4 {[%emt 0:03:52]} Nf6 {[%emt 0:00:00]} 2. c4 {[%emt 0:00:56]} e6 {[%emt 0:00:00]} 3. Nf3 {[%emt 0:01:33]} d5 {[%emt 0:00:28]} 4. Nc3 {[%emt 0:02:14]} Be7 {[%emt 0:00:50]} 5. Bf4 {[%emt 0:06:17]} O-O {[%emt 0:01:41]} 6. Rc1 {[%emt 0:00:23]} Nbd7 {[%emt 0:01:54]} 7. cxd5 {[%emt 0:04:01]} exd5 {[%emt 0:00:05]} 8. e3 {[%emt 0:00:08]} c6 {[%emt 0:00:09]} 9. h3 {[%emt 0:00:26]} Ne4 {[%emt 0:00:51]} 10. Bd3 {[%emt 0:03:53]} Ndf6 {[%emt 0:01:31]} 11. O-O {[%emt 0:00:23]} Bf5 {[%emt 0:02:46]} 12. Ne5 {[%emt 0:01:59]} Re8 {[%emt 0:21:33]} 13. Qc2 {[%emt 0:12:19]} Bf8 {[%emt 0:09:43]} 14. a3 {[%emt 0:06:24]} Bg6 {[%emt 0:06:00]} 15. Ne2 {[%emt 0:08:07]} Nd7 {[%emt 0:03:45]} 16. Nxg6 {[%emt 0:06:34]} hxg6 {[%emt 0:00:05]} 17. b4 {[%emt 0:07:00]} Ng5 {[%emt 0:10:45]} 18. Qb3 {[%emt 0:11:09]} a6 {[%emt 0:02:10]} 19. f3 {[%emt 0:05:36]} Ne6 {[%emt 0:02:24]} 20. Bg3 {[%emt 0:00:28]} Nf6 {[%emt 0:06:15]} 21. Bf2 {[%emt 0:01:23]} Bd6 {[%emt 0:02:20]} 22. e4 {[%emt 0:03:11]} dxe4 {[%emt 0:00:34]} 23. fxe4 {[%emt 0:00:01]} Bb8 {[%emt 0:07:57]} 24. e5 {[%emt 0:01:05]} Nd5 {[%emt 0:00:57]} 25. Be4 {[%emt 0:00:13]} Ba7 {[%emt 0:04:01]} 26. Rcd1 {[%emt 0:03:16]} Qd7 {[%emt 0:02:40]} 27. h4 {[%emt 0:00:09]} Rad8 {[%emt 0:02:12]} 28. Qf3 {[%emt 0:00:01]} Qe7 {[%emt 0:01:28]} 29. Bc2 {[%emt 0:01:05]} Rd7 {[%emt 0:03:20]} 30. Rd3 {[%emt 0:04:30]} Red8 {[%emt 0:01:23]} 31. Qg4 {[%emt 0:00:27]} Ndc7 {[%emt 0:01:13]} 32. Rfd1 {[%emt 0:00:41]} Nb5 {[%emt 0:01:57]} 33. Bb3 {[%emt 0:00:44]} Nbc7 {[%emt 0:02:18]} 34. h5 {[%emt 0:01:06]} gxh5 {[%emt 0:00:26]} 35. Qxh5 {[%emt 0:00:01]} g6 {[%emt 0:00:26]} 36. Qg4 {[%emt 0:00:26]} Qg5 {[%emt 0:00:52]} 37. Qxg5 {[%emt 0:00:34]} Nxg5 {[%emt 0:00:04]} 38. Bh4 {[%emt 0:00:23]} Nce6 {[%emt 0:00:56]} 39. Bxe6 {[%emt 0:00:11]} Nxe6 {[%emt 0:00:04]} 40. Bxd8 {[%emt 0:01:26]} Rxd8 {[%emt 0:00:05]} 41. g3 {[%emt 0:21:20]} g5 {[%emt 0:07:22]} 42. Kg2 {[%emt 0:00:00]} Rd5 {[%emt 0:01:43]} 43. Kf3 {[%emt 0:00:00]} f5 {[%emt 0:03:24]} 44. exf6 {[%emt 0:00:00]} Rf5+ {[%emt 0:01:47]} 45. Kg4 {[%emt 0:00:00]} 1-0

[Event "7th Washington Open 2018"]
[Site "Rockville"]
[Date "2018.08.13"]
[Round "6.5"]
[White "Brodsky, David"]
[Black "Huschenbeth, Niclas"]
[Result "1/2-1/2"]
[ECO "B23"]
[WhiteElo "2402"]
[BlackElo "2590"]
[Annotator "ChessBase"]
[PlyCount "131"]
[EventDate "2018.08.11"]
[EventType "swiss"]
[EventCountry "USA"]
[SourceTitle "playchess.com"]
[Source "ChessBase"]
[SourceQuality "1"]
[TimeControl "40/5400+30:1200+30"]

1. e4 {[%emt 0:00:00]} c5 {[%emt 0:00:00]} 2. Nc3 {[%emt 0:00:00]} d6 {[%emt 0:00:00]} 3. d4 {[%emt 0:00:00]} cxd4 {[%emt 0:00:05]} 4. Qxd4 {[%emt 0:00:00]} Nc6 {[%emt 0:00:31]} 5. Qd2 {[%emt 0:00:04]} g6 {[%emt 0:00:24]} 6. b3 {[%emt 0:00:16]} Bh6 {[%emt 0:00:06]} 7. f4 {[%emt 0:00:07]} Nf6 {[%emt 0:00:41]} 8. Bb2 {[%emt 0:00:24]} O-O {[%emt 0:00:38]} 9. O-O-O {[%emt 0:00:35]} a5 {[%emt 0:00:13]} 10. a4 {[%emt 0:01:18]} Be6 {[%emt 0:16:27]} 11. Nf3 {[%emt 0:20:24]} Rc8 {[%emt 0:01:07]} 12. Ng5 {[%emt 0:01:59]} Nb4 {[%emt 0:14:02]} 13. Nxe6 {[%emt 0:05:07]} fxe6 {[%emt 0:00:04]} 14. Kb1 {[%emt 0:03:45]} e5 {[%emt 0:10:49]} 15. g3 {[%emt 0:07:22]} Qd7 {[%emt 0:02:32]} 16. h4 {[%emt 0:06:38]} Qg4 {[%emt 0:05:15]} 17. Qe1 {[%emt 0:10:14]} Rc5 {[%emt 0:16:13]} 18. Bh3 {[%emt 0:04:40]} Qh5 {[%emt 0:01:01]} 19. fxe5 {[%emt 0:21:16]} Rxe5 {[%emt 0:02:08]} 20. Nd5 {[%emt 0:01:27]} Nbxd5 {[%emt 0:03:53]} 21. g4 {[%emt 0:04:01]} Nxg4 {[%emt 0:00:04]} 22. Bxe5 {[%emt 0:01:46]} Nde3 {[%emt 0:03:27]} 23. Bb2 {[%emt 0:00:49]} Nxd1 {[%emt 0:02:20]} 24. Qxd1 {[%emt 0:00:10]} Nf6 {[%emt 0:01:17]} 25. Be6+ {[%emt 0:02:25]} Kh8 {[%emt 0:00:05]} 26. Qxh5 {[%emt 0:02:38]} gxh5 {[%emt 0:00:04]} 27. Rf1 {[%emt 0:01:13]} Bg7 {[%emt 0:00:14]} 28. Rf5 {[%emt 0:00:39]} Ra8 {[%emt 0:00:59]} 29. e5 {[%emt 0:00:52]} dxe5 {[%emt 0:06:57]} 30. Rxe5 {[%emt 0:00:22]} Ne8 {[%emt 0:02:04]} 31. Rg5 {[%emt 0:01:31]} h6 {[%emt 0:00:09]} 32. Rxh5 {[%emt 0:00:24]} Bxb2 {[%emt 0:00:18]} 33. Kxb2 {[%emt 0:00:06]} Kg7 {[%emt 0:01:19]} 34. Bd5 {[%emt 0:01:59]} Ra7 {[%emt 0:02:17]} 35. Re5 {[%emt 0:01:02]} b6 {[%emt 0:00:03]} 36. Re6 {[%emt 0:00:55]} Nd6 {[%emt 0:00:43]} 37. h5 {[%emt 0:00:27]} Rc7 {[%emt 0:06:28]} 38. Rg6+ {[%emt 0:00:11]} Kh7 {[%emt 0:00:07]} 39. Bg8+ {[%emt 0:00:45]} Kh8 {[%emt 0:00:01]} 40. Be6 {[%emt 0:00:06]} Kh7 {[%emt 0:04:22]} 41. Bg8+ {[%emt 0:21:49]} Kh8 {[%emt 0:02:03]} 42. Be6 {[%emt 0:00:00]} Kh7 {[%emt 0:05:00]} 43. Bg4 {[%emt 0:00:00]} Rc5 {[%emt 0:02:26]} 44. Re6 {[%emt 0:00:00]} Nc8 {[%emt 0:02:58]} 45. Be2 {[%emt 0:00:00]} Kg7 {[%emt 0:01:18]} 46. Rg6+ {[%emt 0:00:00]} Kf8 {[%emt 0:03:10]} 47. Rxh6 {[%emt 0:00:00]} Nd6 {[%emt 0:00:02]} 48. Rh8+ {[%emt 0:00:00]} Kg7 {[%emt 0:00:18]} 49. Rb8 {[%emt 0:00:00]} Re5 {[%emt 0:00:29]} 50. Bd3 {[%emt 0:00:00]} Re6 {[%emt 0:00:43]} 51. Bg6 {[%emt 0:00:00]} Nf7 {[%emt 0:01:16]} 52. Bxf7 {[%emt 0:00:31]} Kxf7 {[%emt 0:00:02]} 53. Kc3 {[%emt 0:01:04]} Kf6 {[%emt 0:01:51]} 54. b4 {[%emt 0:02:59]} Rc6+ {[%emt 0:01:24]} 55. Kb3 {[%emt 0:00:19]} axb4 {[%emt 0:01:01]} 56. Kxb4 {[%emt 0:00:34]} e5 {[%emt 0:01:47]} 57. Rf8+ {[%emt 0:01:41]} Kg5 {[%emt 0:00:28]} 58. c4 {[%emt 0:01:00]} e4 {[%emt 0:01:09]} 59. Kc3 {[%emt 0:00:21]} Re6 {[%emt 0:00:59]} 60. Kd2 {[%emt 0:00:26]} Rc6 {[%emt 0:01:06]} 61. Ke3 {[%emt 0:01:02]} Rxc4 {[%emt 0:00:12]} 62. Rb8 {[%emt 0:00:05]} Rxa4 {[%emt 0:00:23]} 63. Rxb6 {[%emt 0:00:05]} Kxh5 {[%emt 0:00:04]} 64. Re6 {[%emt 0:00:04]} Kg5 {[%emt 0:00:05]} 65. Rxe4 {[%emt 0:00:03]} Rxe4+ {[%emt 0:00:03]} 66. Kxe4 {[%emt 0:00:04]} 1/2-1/2

[Event "7th Washington Open 2018"]
[Site "Rockville"]
[Date "2018.08.13"]
[Round "6.6"]
[White "Tang, Andrew"]
[Black "Azarov, Sergei Nikolaevich"]
[Result "1/2-1/2"]
[ECO "B13"]
[WhiteElo "2490"]
[BlackElo "2574"]
[Annotator "ChessBase"]
[PlyCount "89"]
[EventDate "2018.08.11"]
[EventType "swiss"]
[EventCountry "USA"]
[SourceTitle "playchess.com"]
[Source "ChessBase"]
[SourceQuality "1"]
[TimeControl "40/5400+30:1200+30"]

1. d4 {[%emt 0:00:00]} d5 {[%emt 0:00:00]} 2. Bf4 {[%emt 0:00:00]} Nf6 {[%emt 0:02:45]} 3. e3 {[%emt 0:00:00]} c5 {[%emt 0:03:02]} 4. Nc3 {[%emt 0:02:06]} cxd4 {[%emt 0:07:31]} 5. exd4 {[%emt 0:02:10]} a6 {[%emt 0:00:35]} 6. Nf3 {[%emt 0:00:35]} Bg4 {[%emt 0:00:56]} 7. h3 {[%emt 0:00:28]} Bxf3 {[%emt 0:00:50]} 8. Qxf3 {[%emt 0:00:07]} Nc6 {[%emt 0:00:29]} 9. O-O-O {[%emt 0:00:45]} e6 {[%emt 0:04:40]} 10. g4 {[%emt 0:00:28]} Bd6 {[%emt 0:01:23]} 11. h4 {[%emt 0:13:06]} Bxf4+ {[%emt 0:17:51]} 12. Qxf4 {[%emt 0:00:07]} Rc8 {[%emt 0:00:14]} 13. Kb1 {[%emt 0:12:35]} Qc7 {[%emt 0:10:58]} 14. Qf3 {[%emt 0:25:12]} Na5 {[%emt 0:01:26]} 15. Bd3 {[%emt 0:01:17]} Nc4 {[%emt 0:02:01]} 16. Bxc4 {[%emt 0:01:46]} Qxc4 {[%emt 0:00:11]} 17. Rd2 {[%emt 0:01:21]} b5 {[%emt 0:11:49]} 18. g5 {[%emt 0:13:27]} b4 {[%emt 0:00:35]} 19. gxf6 {[%emt 0:00:50]} bxc3 {[%emt 0:00:07]} 20. b3 {[%emt 0:01:09]} Qb4 {[%emt 0:00:52]} 21. fxg7 {[%emt 0:01:25]} Rg8 {[%emt 0:00:07]} 22. Rd3 {[%emt 0:00:04]} Rxg7 {[%emt 0:00:10]} 23. a3 {[%emt 0:03:18]} Qxa3 {[%emt 0:07:22]} 24. Rxc3 {[%emt 0:00:10]} Rxc3 {[%emt 0:01:18]} 25. Qxc3 {[%emt 0:00:04]} Qd6 {[%emt 0:00:32]} 26. Qf3 {[%emt 0:05:58]} Ke7 {[%emt 0:04:48]} 27. Kb2 {[%emt 0:01:14]} Qb6 {[%emt 0:01:29]} 28. Qf4 {[%emt 0:02:33]} h5 {[%emt 0:01:17]} 29. Rd1 {[%emt 0:01:55]} a5 {[%emt 0:02:24]} 30. Qe5 {[%emt 0:02:05]} Rg8 {[%emt 0:03:52]} 31. Qxh5 {[%emt 0:04:57]} a4 {[%emt 0:00:25]} 32. Qf3 {[%emt 0:00:11]} Qb4 {[%emt 0:02:34]} 33. Qe3 {[%emt 0:01:06]} Rg4 {[%emt 0:05:09]} 34. h5 {[%emt 0:01:08]} Re4 {[%emt 0:00:56]} 35. Qd3 {[%emt 0:01:04]} Rh4 {[%emt 0:03:16]} 36. Qg3 {[%emt 0:01:30]} Rxh5 {[%emt 0:02:53]} 37. Qc7+ {[%emt 0:00:11]} Ke8 {[%emt 0:00:08]} 38. Qc6+ {[%emt 0:01:14]} Ke7 {[%emt 0:00:21]} 39. Qxa4 {[%emt 0:00:16]} Qxa4 {[%emt 0:00:23]} 40. bxa4 {[%emt 0:00:04]} Kd6 {[%emt 0:00:54]} 41. Kb3 {[%emt 0:21:48]} Rf5 {[%emt 0:02:22]} 42. Rd2 {[%emt 0:00:00]} Kc6 {[%emt 0:01:53]} 43. Kb4 {[%emt 0:00:00]} Kb6 {[%emt 0:01:47]} 44. c3 {[%emt 0:00:00]} Rf3 {[%emt 0:00:51]} 45. Rb2 {[%emt 0:00:00]} 1/2-1/2

[Event "7th Washington Open 2018"]
[Site "Rockville"]
[Date "2018.08.13"]
[Round "6.7"]
[White "Gonzalez Vidal, Yuri"]
[Black "Becerra Rivero, Julio"]
[Result "1/2-1/2"]
[ECO "C96"]
[WhiteElo "2559"]
[BlackElo "2529"]
[Annotator "ChessBase"]
[PlyCount "34"]
[EventDate "2018.08.11"]
[EventType "swiss"]
[EventCountry "USA"]
[SourceTitle "playchess.com"]
[Source "ChessBase"]
[SourceQuality "1"]
[TimeControl "40/5400+30:1200+30"]

1. e4 {[%emt 0:00:05]} e5 {[%emt 0:00:00]} 2. Nf3 {[%emt 0:00:10]} Nc6 {[%emt 0:00:00]} 3. Bb5 {[%emt 0:00:35]} a6 {[%emt 0:00:00]} 4. Ba4 {[%emt 0:00:10]} Nf6 {[%emt 0:00:00]} 5. O-O {[%emt 0:00:21]} Be7 {[%emt 0:00:21]} 6. Re1 {[%emt 0:00:29]} b5 {[%emt 0:00:25]} 7. Bb3 {[%emt 0:00:08]} d6 {[%emt 0:00:11]} 8. c3 {[%emt 0:00:15]} O-O {[%emt 0:00:17]} 9. h3 {[%emt 0:00:24]} Na5 {[%emt 0:00:23]} 10. Bc2 {[%emt 0:00:07]} c5 {[%emt 0:00:11]} 11. d4 {[%emt 0:00:21]} Nd7 {[%emt 0:00:16]} 12. dxc5 {[%emt 0:00:46]} dxc5 {[%emt 0:00:11]} 13. Nbd2 {[%emt 0:00:17]} Bb7 {[%emt 0:00:34]} 14. Qe2 {[%emt 0:00:26]} Qc7 {[%emt 0:00:25]} 15. Nf1 {[%emt 0:01:11]} Nc4 {[%emt 0:00:09]} 16. Ng3 {[%emt 0:01:20]} Nd6 {[%emt 0:00:07]} 17. Bd2 {[%emt 0:01:23]} c4 {[%emt 0:21:01]} 1/2-1/2

[Event "7th Washington Open 2018"]
[Site "Rockville"]
[Date "2018.08.13"]
[Round "6.8"]
[White "Ortiz Suarez, Isan Reynaldo"]
[Black "Panchanathan, Magesh Chandran"]
[Result "1/2-1/2"]
[ECO "A46"]
[WhiteElo "2549"]
[BlackElo "2486"]
[Annotator "ChessBase"]
[PlyCount "73"]
[EventDate "2018.08.11"]
[EventType "swiss"]
[EventCountry "USA"]
[SourceTitle "playchess.com"]
[Source "ChessBase"]
[SourceQuality "1"]
[TimeControl "40/5400+30:1200+30"]

1. Nf3 {[%emt 0:01:49]} Nf6 {[%emt 0:06:01]} 2. g3 {[%emt 0:00:10]} e6 {[%emt 0:01:00]} 3. Bg2 {[%emt 0:00:17]} d5 {[%emt 0:00:11]} 4. O-O {[%emt 0:01:31]} Be7 {[%emt 0:01:01]} 5. d4 {[%emt 0:00:29]} b5 {[%emt 0:02:46]} 6. Nbd2 {[%emt 0:03:08]} O-O {[%emt 0:02:27]} 7. Ne5 {[%emt 0:04:27]} Nfd7 {[%emt 0:01:10]} 8. Nd3 {[%emt 0:03:08]} Bb7 {[%emt 0:20:56]} 9. e4 {[%emt 0:01:48]} Nf6 {[%emt 0:00:16]} 10. e5 {[%emt 0:03:06]} Nfd7 {[%emt 0:01:06]} 11. Qg4 {[%emt 0:01:10]} Kh8 {[%emt 0:06:38]} 12. Nf3 {[%emt 0:01:54]} c5 {[%emt 0:01:06]} 13. c3 {[%emt 0:14:20]} Nc6 {[%emt 0:00:33]} 14. h4 {[%emt 0:01:00]} b4 {[%emt 0:03:09]} 15. Rd1 {[%emt 0:01:31]} Ba6 {[%emt 0:15:14]} 16. Nf4 {[%emt 0:01:22]} Rc8 {[%emt 0:09:01]} 17. Be3 {[%emt 0:06:34]} Qe8 {[%emt 0:02:49]} 18. Bh3 {[%emt 0:11:27]} Rc7 {[%emt 0:02:20]} 19. Ng5 {[%emt 0:00:58]} Bxg5 {[%emt 0:15:05]} 20. hxg5 {[%emt 0:00:15]} Ne7 {[%emt 0:00:36]} 21. Qh5 {[%emt 0:02:01]} cxd4 {[%emt 0:02:32]} 22. cxd4 {[%emt 0:02:06]} Rc2 {[%emt 0:00:06]} 23. Rd2 {[%emt 0:10:29]} Qc8 {[%emt 0:00:06]} 24. Kg2 {[%emt 0:03:28]} g6 {[%emt 0:02:53]} 25. Qd1 {[%emt 0:08:10]} Rc6 {[%emt 0:00:15]} 26. Qe1 {[%emt 0:04:38]} Qb7 {[%emt 0:00:25]} 27. b3 {[%emt 0:00:48]} Nxe5 {[%emt 0:01:24]} 28. dxe5 {[%emt 0:00:47]} d4 {[%emt 0:00:03]} 29. Kh2 {[%emt 0:00:05]} dxe3 {[%emt 0:00:25]} 30. Qxe3 {[%emt 0:00:03]} Rc3 {[%emt 0:01:04]} 31. Qe1 {[%emt 0:04:50]} Bb5 {[%emt 0:00:38]} 32. Rad1 {[%emt 0:00:50]} Qc8 {[%emt 0:01:39]} 33. Ne2 {[%emt 0:02:11]} Bxe2 {[%emt 0:00:31]} 34. Qxe2 {[%emt 0:00:10]} Qc5 {[%emt 0:00:32]} 35. Bg2 {[%emt 0:03:11]} Kg7 {[%emt 0:00:17]} 36. Qe4 {[%emt 0:00:37]} Nc6 {[%emt 0:01:02]} 37. Qxc6 {[%emt 0:02:44]} 1/2-1/2

[Event "7th Washington Open 2018"]
[Site "Rockville"]
[Date "2018.08.14"]
[Round "7"]
[White "Stukopin, Andrey"]
[Black "Vidal, Yuri Gonzal"]
[Result "1-0"]
[ECO "C50"]
[WhiteElo "2598"]
[BlackElo "2559"]
[Annotator "ChessBase"]
[PlyCount "57"]
[EventDate "2018.08.11"]
[EventType "swiss"]
[EventCountry "USA"]
[SourceTitle "playchess.com"]
[Source "ChessBase"]
[SourceQuality "1"]
[TimeControl "40/5400+30:1200+30"]

1. e4 {[%emt 0:06:15]} e5 {[%emt 0:00:00]} 2. Nf3 {[%emt 0:00:11]} Nc6 {[%emt 0:00:07]} 3. Bc4 {[%emt 0:00:07]} Bc5 {[%emt 0:00:11]} 4. O-O {[%emt 0:01:37]} Nf6 {[%emt 0:00:09]} 5. d3 {[%emt 0:00:04]} O-O {[%emt 0:00:13]} 6. h3 {[%emt 0:00:04]} d6 {[%emt 0:00:41]} 7. c3 {[%emt 0:01:42]} a6 {[%emt 0:02:29]} 8. a4 {[%emt 0:01:50]} h6 {[%emt 0:01:23]} 9. Re1 {[%emt 0:11:04]} Ba7 {[%emt 0:01:19]} 10. Nbd2 {[%emt 0:06:28]} Ne7 {[%emt 0:10:35]} 11. Nf1 {[%emt 0:01:07]} Ng6 {[%emt 0:03:43]} 12. Ng3 {[%emt 0:11:32]} c6 {[%emt 0:02:30]} 13. Bb3 {[%emt 0:08:16]} Re8 {[%emt 0:20:45]} 14. d4 {[%emt 0:00:26]} Be6 {[%emt 0:00:24]} 15. Bc2 {[%emt 0:06:35]} Qc7 {[%emt 0:01:09]} 16. Be3 {[%emt 0:02:11]} Rad8 {[%emt 0:04:37]} 17. Qc1 {[%emt 0:06:24]} a5 {[%emt 0:05:21]} 18. Nf5 {[%emt 0:08:51]} Bxf5 {[%emt 0:08:20]} 19. exf5 {[%emt 0:00:05]} Nf8 {[%emt 0:04:32]} 20. Bxh6 {[%emt 0:02:27]} gxh6 {[%emt 0:04:59]} 21. Qxh6 {[%emt 0:01:48]} Qe7 {[%emt 0:12:50]} 22. Re3 {[%emt 0:11:15]} N8h7 {[%emt 0:02:56]} 23. Ng5 {[%emt 0:00:10]} Qf8 {[%emt 0:01:39]} 24. Qh4 {[%emt 0:00:03]} Nxg5 {[%emt 0:04:04]} 25. Qxg5+ {[%emt 0:07:23]} Qg7 {[%emt 0:00:16]} 26. Qh4 {[%emt 0:00:03]} exd4 {[%emt 0:05:26]} 27. Rg3 {[%emt 0:00:04]} Qxg3 {[%emt 0:00:11]} 28. Qxg3+ {[%emt 0:00:14]} Kf8 {[%emt 0:00:04]} 29. Qg5 {[%emt 0:01:04]} 1-0

[Event "7th Washington Open 2018"]
[Site "Rockville"]
[Date "2018.08.14"]
[Round "7"]
[White "Azarov, Sergei Nikolaevich"]
[Black "Popilski, Gil"]
[Result "1/2-1/2"]
[ECO "C03"]
[WhiteElo "2574"]
[BlackElo "2491"]
[Annotator "ChessBase"]
[PlyCount "84"]
[EventDate "2018.08.11"]
[EventType "swiss"]
[EventCountry "USA"]
[SourceTitle "playchess.com"]
[Source "ChessBase"]
[SourceQuality "1"]
[TimeControl "40/5400+30:1200+30"]

1. e4 {[%emt 0:00:00]} e6 {[%emt 0:00:00]} 2. d4 {[%emt 0:00:00]} d5 {[%emt 0:00:00]} 3. Nd2 {[%emt 0:00:21]} a6 {[%emt 0:00:00]} 4. Bd3 {[%emt 0:02:36]} c5 {[%emt 0:00:11]} 5. dxc5 {[%emt 0:00:25]} Bxc5 {[%emt 0:03:04]} 6. Ngf3 {[%emt 0:00:59]} Nc6 {[%emt 0:15:05]} 7. c3 {[%emt 0:01:53]} Nge7 {[%emt 0:14:59]} 8. O-O {[%emt 0:00:44]} O-O {[%emt 0:00:20]} 9. Qe2 {[%emt 0:01:01]} Qc7 {[%emt 0:01:42]} 10. Re1 {[%emt 0:01:40]} Ba7 11. Nb3 {[%emt 0:07:56]} h6 {[%emt 0:12:01]} 12. e5 {[%emt 0:19:56]} f6 {[%emt 0:00:34]} 13. exf6 {[%emt 0:05:58]} Rxf6 {[%emt 0:00:02]} 14. Be3 {[%emt 0:01:34]} Bb8 {[%emt 0:06:34]} 15. Bc5 {[%emt 0:10:38]} Rxf3 {[%emt 0:11:07]} 16. Qxf3 {[%emt 0:04:01]} Qxh2+ {[%emt 0:00:05]} 17. Kf1 {[%emt 0:00:04]} e5 {[%emt 0:00:14]} 18. Bxe7 {[%emt 0:13:10]} Nxe7 {[%emt 0:00:02]} 19. Nd4 {[%emt 0:00:26]} e4 {[%emt 0:12:04]} 20. Rxe4 {[%emt 0:00:15]} dxe4 {[%emt 0:00:22]} 21. Bc4+ {[%emt 0:00:16]} Kh7 {[%emt 0:01:48]} 22. Qxe4+ {[%emt 0:00:13]} Ng6 {[%emt 0:00:13]} 23. Bd3 {[%emt 0:03:49]} Qh1+ {[%emt 0:02:34]} 24. Ke2 {[%emt 0:00:05]} Qh5+ {[%emt 0:00:09]} 25. Nf3 {[%emt 0:00:28]} Qg4 {[%emt 0:04:15]} 26. Kf1 {[%emt 0:01:03]} Qxe4 {[%emt 0:04:01]} 27. Bxe4 {[%emt 0:00:10]} Be6 {[%emt 0:00:25]} 28. Nh4 {[%emt 0:01:06]} Bf7 {[%emt 0:00:14]} 29. Rd1 {[%emt 0:01:03]} Be5 {[%emt 0:00:22]} 30. Rd7 {[%emt 0:01:25]} Bf6 {[%emt 0:00:07]} 31. Rxf7 {[%emt 0:02:13]} Bxh4 {[%emt 0:00:12]} 32. g4 {[%emt 0:02:06]} Re8 {[%emt 0:01:18]} 33. Bf5 {[%emt 0:01:53]} Re5 {[%emt 0:03:59]} 34. Rxb7 {[%emt 0:01:25]} h5 {[%emt 0:00:06]} 35. Rb6 {[%emt 0:01:22]} Bf6 {[%emt 0:00:06]} 36. f4 {[%emt 0:02:45]} Rc5 {[%emt 0:01:19]} 37. Bxg6+ {[%emt 0:02:41]} Kxg6 {[%emt 0:00:02]} 38. g5 {[%emt 0:00:08]} Rf5 {[%emt 0:00:08]} 39. gxf6 {[%emt 0:00:19]} Rxf4+ {[%emt 0:00:02]} 40. Kg2 {[%emt 0:00:31]} Rxf6 {[%emt 0:00:02]} 41. Rxf6+ {[%emt 0:21:22]} Kxf6 {[%emt 0:21:31]} 42. b4 {[%emt 0:00:22]} Ke5 {[%emt 0:00:21]} 1/2-1/2